[Event "Titled Tuesday Blitz September 20 Late 2022"]
[White "Safarli, Eltaj"]
[Black "Bortnyk, Olexandr"]
[WhiteFideId "13402129"]
[BlackFideId "14120828"]
[WhiteElo "2634"]
[BlackElo "2723"]
[Result "0-1"]
[Round "05"]
[TimeControl "180+1"]
[Date "2022.09.20"]
[WhiteClock "0:00:35"]
[BlackClock "0:00:09"]

1. e4 {[%clk 0:03:00]}  d6 {[%clk 0:03:00]} 2. d4 {[%clk 0:03:00]}  Nf6 {[%clk 0:03:00]} 3. Nc3 {[%clk 0:03:01]}  e5 {[%clk 0:03:00]} 4. Nf3 {[%clk 0:03:01]}  Nbd7 {[%clk 0:03:00]} 5. Bc4 {[%clk 0:03:01]}  Be7 {[%clk 0:02:59]} 6. O-O {[%clk 0:03:01]}  c6 {[%clk 0:02:59]} 7. Re1 {[%clk 0:03:02]}  h6 {[%clk 0:03:00]} 8. a4 {[%clk 0:03:01]}  Qc7 {[%clk 0:03:00]} 9. a5 {[%clk 0:03:01]}  Nf8 {[%clk 0:02:57]} 10. Bb3 {[%clk 0:02:51]}  Ng6 {[%clk 0:02:54]} 11. a6 {[%clk 0:02:50]}  bxa6 {[%clk 0:02:13]} 12. d5 {[%clk 0:02:48]}  c5 {[%clk 0:02:08]} 13. Ba4+ {[%clk 0:02:42]}  Kf8 {[%clk 0:02:03]} 14. Nd2 {[%clk 0:02:38]}  Rb8 {[%clk 0:02:01]} 15. Nc4 {[%clk 0:02:34]}  Kg8 {[%clk 0:02:01]} 16. Bc6 {[%clk 0:02:30]}  Kh7 {[%clk 0:02:00]} 17. b3 {[%clk 0:02:30]}  Rf8 {[%clk 0:01:47]} 18. h3 {[%clk 0:02:19]}  Nd7 {[%clk 0:01:26]} 19. Qh5 {[%clk 0:02:14]}  Nb6 {[%clk 0:01:18]} 20. Ne3 {[%clk 0:02:11]}  Bg5 {[%clk 0:01:11]} 21. Nf5 {[%clk 0:02:08]}  Bxc1 {[%clk 0:01:12]} 22. Raxc1 {[%clk 0:02:08]}  Bxf5 {[%clk 0:01:02]} 23. exf5 {[%clk 0:02:06]}  Ne7 {[%clk 0:01:02]} 24. f6 {[%clk 0:02:05]}  g6 {[%clk 0:01:02]} 25. Qf3 {[%clk 0:02:02]}  Nxc6 {[%clk 0:00:59]} 26. dxc6 {[%clk 0:02:03]}  Rbc8 {[%clk 0:00:58]} 27. Rcd1 {[%clk 0:01:35]}  Qxc6 {[%clk 0:00:56]} 28. Nd5 {[%clk 0:01:35]}  Nxd5 {[%clk 0:00:54]} 29. Rxd5 {[%clk 0:01:36]}  Rfe8 {[%clk 0:00:51]} 30. Red1 {[%clk 0:01:33]}  Re6 {[%clk 0:00:50]} 31. h4 {[%clk 0:01:33]}  h5 {[%clk 0:00:33]} 32. c4 {[%clk 0:01:30]}  Rb8 {[%clk 0:00:28]} 33. Re1 {[%clk 0:01:19]}  Qb6 {[%clk 0:00:27]} 34. Rd3 {[%clk 0:01:08]}  Qd8 {[%clk 0:00:26]} 35. Qc6 {[%clk 0:01:06]}  Qxf6 {[%clk 0:00:25]} 36. Qxa6 {[%clk 0:01:03]}  Qe7 {[%clk 0:00:22]} 37. g3 {[%clk 0:01:02]}  e4 {[%clk 0:00:20]} 38. Rdd1 {[%clk 0:00:58]}  Rxb3 {[%clk 0:00:19]} 39. Qa2 {[%clk 0:00:55]}  Rf3 {[%clk 0:00:19]} 40. Kg2 {[%clk 0:00:53]}  Qf6 {[%clk 0:00:18]} 41. Qd2 {[%clk 0:00:48]}  Rd3 {[%clk 0:00:15]} 42. Qe2 {[%clk 0:00:45]}  Qf3+ {[%clk 0:00:15]} 43. Qxf3 {[%clk 0:00:42]}  exf3+ {[%clk 0:00:16]} 44. Kh2 {[%clk 0:00:42]}  Rxd1 {[%clk 0:00:09]} 45. Rxd1 {[%clk 0:00:43]}  a5 {[%clk 0:00:08]} 46. Rd3 {[%clk 0:00:41]}  Kg7 {[%clk 0:00:09]} 47. Ra3 {[%clk 0:00:38]}  Re4 {[%clk 0:00:09]} 48. Rxa5 {[%clk 0:00:35]}  Rxc4 {[%clk 0:00:09]} 0-1


[Site "https://www.chess.com"]

[Event "Titled Tuesday Blitz September 20 Late 2022"]
[White "Sokolovsky, Yahli"]
[Black "Hansen, Eric"]
[WhiteFideId "2820242"]
[BlackFideId "2606771"]
[WhiteElo "1920"]
[BlackElo "2568"]
[Result "1-0"]
[Round "05"]
[TimeControl "180+1"]
[Date "2022.09.20"]
[WhiteClock "0:00:08"]
[BlackClock "0:00:01"]

1. b3 {[%clk 0:03:00]}  e5 {[%clk 0:02:59]} 2. Bb2 {[%clk 0:03:01]}  Nc6 {[%clk 0:02:59]} 3. e3 {[%clk 0:03:02]}  Nf6 {[%clk 0:02:59]} 4. Nf3 {[%clk 0:03:03]}  e4 {[%clk 0:02:58]} 5. Nd4 {[%clk 0:03:03]}  d5 {[%clk 0:02:59]} 6. c4 {[%clk 0:03:02]}  dxc4 {[%clk 0:02:58]} 7. Nxc6 {[%clk 0:02:53]}  bxc6 {[%clk 0:02:58]} 8. Bxc4 {[%clk 0:02:54]}  Bd6 {[%clk 0:02:54]} 9. Nc3 {[%clk 0:02:40]}  Qe7 {[%clk 0:02:52]} 10. d3 {[%clk 0:02:38]}  Bg4 {[%clk 0:02:48]} 11. Qc2 {[%clk 0:02:38]}  exd3 {[%clk 0:02:49]} 12. Bxd3 {[%clk 0:02:36]}  Rd8 {[%clk 0:02:44]} 13. Ne4 {[%clk 0:02:34]}  Bb4+ {[%clk 0:02:43]} 14. Kf1 {[%clk 0:02:32]}  Nxe4 {[%clk 0:02:36]} 15. Qxc6+ {[%clk 0:02:28]}  Kf8 {[%clk 0:02:28]} 16. Bxe4 {[%clk 0:02:10]}  Rd2 {[%clk 0:02:27]} 17. Qa8+ {[%clk 0:02:03]}  Rd8 {[%clk 0:02:22]} 18. Qc6 {[%clk 0:01:55]}  h5 {[%clk 0:01:06]} 19. h3 {[%clk 0:01:49]}  Rh6 {[%clk 0:01:04]} 20. Qc4 {[%clk 0:01:13]}  Be6 {[%clk 0:00:53]} 21. Qc1 {[%clk 0:01:06]}  Bxh3 {[%clk 0:00:24]} 22. Rxh3 {[%clk 0:01:03]}  Qxe4 {[%clk 0:00:24]} 23. Qxc7 {[%clk 0:00:57]}  Qd3+ {[%clk 0:00:18]} 24. Kg1 {[%clk 0:00:57]}  Qd1+ {[%clk 0:00:18]} 25. Rxd1 {[%clk 0:00:36]}  Rxd1+ {[%clk 0:00:18]} 26. Kh2 {[%clk 0:00:37]}  Bd6+ {[%clk 0:00:19]} 27. Qxd6+ {[%clk 0:00:36]}  Rdxd6 {[%clk 0:00:20]} 28. Ba3 {[%clk 0:00:36]}  Ke7 {[%clk 0:00:20]} 29. Rh4 {[%clk 0:00:35]}  Kd7 {[%clk 0:00:20]} 30. Bxd6 {[%clk 0:00:34]}  Rxd6 {[%clk 0:00:20]} 31. Rxh5 {[%clk 0:00:30]}  Rd2 {[%clk 0:00:19]} 32. Ra5 {[%clk 0:00:31]}  Rxf2 {[%clk 0:00:19]} 33. Rxa7+ {[%clk 0:00:32]}  Ke6 {[%clk 0:00:20]} 34. Kg3 {[%clk 0:00:33]}  Re2 {[%clk 0:00:20]} 35. Kf3 {[%clk 0:00:33]}  Rb2 {[%clk 0:00:20]} 36. g4 {[%clk 0:00:30]}  g5 {[%clk 0:00:20]} 37. Ra6+ {[%clk 0:00:29]}  Ke5 {[%clk 0:00:19]} 38. Ra5+ {[%clk 0:00:29]}  Kf6 {[%clk 0:00:20]} 39. Ke4 {[%clk 0:00:28]}  Kg6 {[%clk 0:00:17]} 40. Ra6+ {[%clk 0:00:28]}  f6 {[%clk 0:00:18]} 41. Kf3 {[%clk 0:00:26]}  Kf7 {[%clk 0:00:16]} 42. e4 {[%clk 0:00:26]}  Rh2 {[%clk 0:00:15]} 43. Kg3 {[%clk 0:00:23]}  Re2 {[%clk 0:00:14]} 44. Kf3 {[%clk 0:00:24]}  Rb2 {[%clk 0:00:15]} 45. Ra4 {[%clk 0:00:20]}  Ke6 {[%clk 0:00:15]} 46. b4 {[%clk 0:00:17]}  Ke5 {[%clk 0:00:12]} 47. Ra5+ {[%clk 0:00:17]}  Kd4 {[%clk 0:00:13]} 48. Rd5+ {[%clk 0:00:11]}  Kc4 {[%clk 0:00:13]} 49. Rd6 {[%clk 0:00:11]}  Rxa2 {[%clk 0:00:13]} 50. Rxf6 {[%clk 0:00:11]}  Ra3+ {[%clk 0:00:13]} 51. Ke2 {[%clk 0:00:11]}  Kd4 {[%clk 0:00:13]} 52. Rf5 {[%clk 0:00:09]}  Kxe4 {[%clk 0:00:10]} 53. Rxg5 {[%clk 0:00:09]}  Ra2+ {[%clk 0:00:08]} 54. Kd1 {[%clk 0:00:09]}  Rb2 {[%clk 0:00:09]} 55. b5 {[%clk 0:00:09]}  Kf4 {[%clk 0:00:09]} 56. Rc5 {[%clk 0:00:06]}  Kxg4 {[%clk 0:00:09]} 57. Kc1 {[%clk 0:00:07]}  Rb4 {[%clk 0:00:10]} 58. Kc2 {[%clk 0:00:08]}  Kf3 {[%clk 0:00:09]} 59. Kc3 {[%clk 0:00:09]}  Rb1 {[%clk 0:00:09]} 60. Kd4 {[%clk 0:00:07]}  Kf4 {[%clk 0:00:04]} 61. Rh5 {[%clk 0:00:08]}  Rb4+ {[%clk 0:00:03]} 62. Kc5 {[%clk 0:00:08]}  Rb1 {[%clk 0:00:03]} 63. b6 {[%clk 0:00:08]}  Ke4 {[%clk 0:00:03]} 64. Kc6 {[%clk 0:00:08]}  Rc1+ {[%clk 0:00:03]} 65. Rc5 {[%clk 0:00:08]}  Rh1 {[%clk 0:00:01]} 66. b7 {[%clk 0:00:08]}  Rh8 {[%clk 0:00:01]} 67. Rb5 {[%clk 0:00:08]} 1-0


[Site "https://www.chess.com"]

[Event "Titled Tuesday Blitz September 20 Late 2022"]
[White "Terry, Renato"]
[Black "Shimanov, Aleksandr"]
[WhiteFideId "3803457"]
[BlackFideId "4198603"]
[WhiteElo "2577"]
[BlackElo "2605"]
[Result "0-1"]
[Round "05"]
[TimeControl "180+1"]
[Date "2022.09.20"]
[WhiteClock "0:00:00"]
[BlackClock "0:00:07"]

1. e4 {[%clk 0:03:00]}  d5 {[%clk 0:02:14]} 2. exd5 {[%clk 0:02:59]}  Qxd5 {[%clk 0:02:15]} 3. Nc3 {[%clk 0:02:59]}  Qe5+ {[%clk 0:02:14]} 4. Be2 {[%clk 0:02:58]}  Bg4 {[%clk 0:02:14]} 5. d4 {[%clk 0:02:57]}  Bxe2 {[%clk 0:02:15]} 6. Qxe2 {[%clk 0:02:50]}  Qxe2+ {[%clk 0:02:13]} 7. Ngxe2 {[%clk 0:02:51]}  e6 {[%clk 0:02:12]} 8. d5 {[%clk 0:02:44]}  exd5 {[%clk 0:02:04]} 9. Nxd5 {[%clk 0:02:44]}  Bd6 {[%clk 0:02:05]} 10. Bf4 {[%clk 0:02:44]}  Bxf4 {[%clk 0:02:01]} 11. Nexf4 {[%clk 0:02:44]}  Na6 {[%clk 0:02:02]} 12. O-O-O {[%clk 0:02:39]}  O-O-O {[%clk 0:01:57]} 13. Rhe1 {[%clk 0:02:36]}  g6 {[%clk 0:01:41]} 14. Rd3 {[%clk 0:02:00]}  h5 {[%clk 0:00:34]} 15. h4 {[%clk 0:01:42]}  Nh6 {[%clk 0:00:33]} 16. Re7 {[%clk 0:01:37]}  c6 {[%clk 0:00:32]} 17. Nf6 {[%clk 0:01:30]}  Nc5 {[%clk 0:00:31]} 18. Rc3 {[%clk 0:01:22]}  Nd7 {[%clk 0:00:26]} 19. Ne4 {[%clk 0:01:13]}  Nb6 {[%clk 0:00:21]} 20. Nc5 {[%clk 0:01:02]}  Nd7 {[%clk 0:00:21]} 21. Ne4 {[%clk 0:00:55]}  Nb6 {[%clk 0:00:21]} 22. Ra3 {[%clk 0:00:55]}  a6 {[%clk 0:00:20]} 23. Rb3 {[%clk 0:00:55]}  Rd7 {[%clk 0:00:16]} 24. Rxd7 {[%clk 0:00:47]}  Nxd7 {[%clk 0:00:17]} 25. Nd6+ {[%clk 0:00:47]}  Kc7 {[%clk 0:00:17]} 26. Nxb7 {[%clk 0:00:45]}  Re8 {[%clk 0:00:17]} 27. Na5 {[%clk 0:00:38]}  Re1+ {[%clk 0:00:13]} 28. Kd2 {[%clk 0:00:38]}  Rf1 {[%clk 0:00:14]} 29. Ke2 {[%clk 0:00:37]}  Rc1 {[%clk 0:00:14]} 30. Rc3 {[%clk 0:00:37]}  Ne5 {[%clk 0:00:10]} 31. Nd3 {[%clk 0:00:35]}  Nxd3 {[%clk 0:00:10]} 32. Rxc6+ {[%clk 0:00:30]}  Kd7 {[%clk 0:00:09]} 33. Kxd3 {[%clk 0:00:31]}  Rd1+ {[%clk 0:00:08]} 34. Ke2 {[%clk 0:00:29]}  Rb1 {[%clk 0:00:07]} 35. Rb6 {[%clk 0:00:26]}  Nf5 {[%clk 0:00:06]} 36. g3 {[%clk 0:00:26]}  Nd4+ {[%clk 0:00:06]} 37. Kd3 {[%clk 0:00:26]}  Ne6 {[%clk 0:00:06]} 38. Nc4 {[%clk 0:00:24]}  Kc7 {[%clk 0:00:07]} 39. Kd2 {[%clk 0:00:13]}  Rf1 {[%clk 0:00:07]} 40. Ke2 {[%clk 0:00:11]}  Rc1 {[%clk 0:00:07]} 41. Kd2 {[%clk 0:00:10]}  Rf1 {[%clk 0:00:07]} 42. Rxa6 {[%clk 0:00:08]}  Rxf2+ {[%clk 0:00:07]} 43. Kc3 {[%clk 0:00:08]}  Rf3+ {[%clk 0:00:07]} 44. Kb4 {[%clk 0:00:09]}  Nd4 {[%clk 0:00:07]} 45. c3 {[%clk 0:00:00]}  Nc6+ {[%clk 0:00:07]} 0-1


[Site "https://www.chess.com"]

[Event "Titled Tuesday Blitz September 20 Late 2022"]
[White "Xiong, Jeffery"]
[Black "Muradli, Mahammad"]
[WhiteFideId "2047640"]
[BlackFideId "13409301"]
[WhiteElo "2714"]
[BlackElo "2611"]
[Result "1-0"]
[Round "05"]
[TimeControl "180+1"]
[Date "2022.09.20"]
[WhiteClock "0:00:05"]
[BlackClock "0:00:01"]

1. c4 {[%clk 0:03:00]}  g6 {[%clk 0:02:57]} 2. d4 {[%clk 0:02:59]}  Bg7 {[%clk 0:02:57]} 3. e4 {[%clk 0:03:00]}  d6 {[%clk 0:02:58]} 4. Nc3 {[%clk 0:03:00]}  Nf6 {[%clk 0:02:58]} 5. Be2 {[%clk 0:03:00]}  O-O {[%clk 0:02:58]} 6. Be3 {[%clk 0:03:01]}  c5 {[%clk 0:02:59]} 7. dxc5 {[%clk 0:03:00]}  e6 {[%clk 0:02:59]} 8. cxd6 {[%clk 0:02:50]}  Nc6 {[%clk 0:02:50]} 9. c5 {[%clk 0:02:41]}  b6 {[%clk 0:02:45]} 10. cxb6 {[%clk 0:02:38]}  axb6 {[%clk 0:02:46]} 11. Qd2 {[%clk 0:02:29]}  e5 {[%clk 0:02:03]} 12. Nf3 {[%clk 0:02:25]}  Bg4 {[%clk 0:01:58]} 13. O-O {[%clk 0:02:24]}  Bxf3 {[%clk 0:01:45]} 14. Bxf3 {[%clk 0:02:25]}  Nd7 {[%clk 0:01:46]} 15. Nb5 {[%clk 0:02:17]}  Nc5 {[%clk 0:01:19]} 16. Rfc1 {[%clk 0:02:11]}  Ra5 {[%clk 0:01:13]} 17. b4 {[%clk 0:01:53]}  Rxb5 {[%clk 0:01:08]} 18. bxc5 {[%clk 0:01:54]}  Nd4 {[%clk 0:01:02]} 19. Bg5 {[%clk 0:01:19]}  Bf6 {[%clk 0:00:46]} 20. Bh6 {[%clk 0:00:57]}  Bg7 {[%clk 0:00:43]} 21. Bg5 {[%clk 0:00:21]}  Bf6 {[%clk 0:00:42]} 22. Bh6 {[%clk 0:00:12]}  Re8 {[%clk 0:00:42]} 23. Bg4 {[%clk 0:00:12]}  Qa8 {[%clk 0:00:16]} 24. d7 {[%clk 0:00:12]}  Rd8 {[%clk 0:00:16]} 25. cxb6 {[%clk 0:00:11]}  Qxe4 {[%clk 0:00:13]} 26. h3 {[%clk 0:00:11]}  Rxb6 {[%clk 0:00:10]} 27. Rc8 {[%clk 0:00:11]}  Rb8 {[%clk 0:00:03]} 28. Re1 {[%clk 0:00:11]}  Qa8 {[%clk 0:00:04]} 29. Bg5 {[%clk 0:00:11]}  Bxg5 {[%clk 0:00:03]} 30. Qxg5 {[%clk 0:00:12]}  Rbxc8 {[%clk 0:00:01]} 31. dxc8=Q {[%clk 0:00:13]}  Rxc8 {[%clk 0:00:02]} 32. Bxc8 {[%clk 0:00:13]}  Qxc8 {[%clk 0:00:02]} 33. Qxe5 {[%clk 0:00:14]}  Ne6 {[%clk 0:00:03]} 34. Rb1 {[%clk 0:00:14]}  Qc6 {[%clk 0:00:01]} 35. Rb8+ {[%clk 0:00:13]}  Nf8 {[%clk 0:00:02]} 36. Qf4 {[%clk 0:00:07]}  Kg7 {[%clk 0:00:01]} 37. Qd4+ {[%clk 0:00:07]}  Kg8 {[%clk 0:00:01]} 38. Qb4 {[%clk 0:00:07]}  Qc1+ {[%clk 0:00:01]} 39. Kh2 {[%clk 0:00:08]}  Qh6 {[%clk 0:00:01]} 40. a4 {[%clk 0:00:07]}  Qg7 {[%clk 0:00:01]} 41. a5 {[%clk 0:00:06]}  h5 {[%clk 0:00:01]} 42. Qxf8+ {[%clk 0:00:05]} 1-0


[Site "https://www.chess.com"]

[Event "Titled Tuesday Blitz September 20 Late 2022"]
[White "Atanasov, Anthony"]
[Black "Shandrygin, Nikita"]
[WhiteFideId "2623897"]
[BlackFideId "24198668"]
[WhiteElo "1933"]
[BlackElo "2323"]
[Result "1-0"]
[Round "06"]
[TimeControl "180+1"]
[Date "2022.09.20"]
[WhiteClock "0:00:03"]
[BlackClock "0:00:06"]

1. e4 {[%clk 0:03:00]}  c5 {[%clk 0:02:59]} 2. Nf3 {[%clk 0:03:00]}  e6 {[%clk 0:02:59]} 3. d4 {[%clk 0:03:01]}  cxd4 {[%clk 0:03:00]} 4. Nxd4 {[%clk 0:03:01]}  Nf6 {[%clk 0:03:01]} 5. Nc3 {[%clk 0:02:41]}  Nc6 {[%clk 0:03:00]} 6. Nxc6 {[%clk 0:02:38]}  bxc6 {[%clk 0:03:01]} 7. e5 {[%clk 0:02:39]}  Nd5 {[%clk 0:03:00]} 8. Ne4 {[%clk 0:02:39]}  Qc7 {[%clk 0:03:00]} 9. f4 {[%clk 0:02:37]}  Qb6 {[%clk 0:03:00]} 10. c4 {[%clk 0:02:37]}  Bb4+ {[%clk 0:03:00]} 11. Ke2 {[%clk 0:02:38]}  f5 {[%clk 0:03:00]} 12. Nf2 {[%clk 0:02:18]}  Ba6 {[%clk 0:02:59]} 13. Kf3 {[%clk 0:02:15]}  Ne7 {[%clk 0:02:59]} 14. Be3 {[%clk 0:02:15]}  Bc5 {[%clk 0:02:59]} 15. Bxc5 {[%clk 0:02:12]}  Qxc5 {[%clk 0:03:00]} 16. Qd6 {[%clk 0:02:10]}  Qa5 {[%clk 0:03:01]} 17. a4 {[%clk 0:01:27]}  c5 {[%clk 0:02:49]} 18. Be2 {[%clk 0:01:05]}  Nc6 {[%clk 0:02:31]} 19. Rhd1 {[%clk 0:00:58]}  Nd4+ {[%clk 0:02:31]} 20. Rxd4 {[%clk 0:00:59]}  cxd4 {[%clk 0:02:31]} 21. b4 {[%clk 0:00:58]}  Bb7+ {[%clk 0:02:03]} 22. Kg3 {[%clk 0:00:57]}  Qd8 {[%clk 0:02:04]} 23. b5 {[%clk 0:00:44]}  Kf7 {[%clk 0:01:35]} 24. h4 {[%clk 0:00:17]}  Qe7 {[%clk 0:01:05]} 25. c5 {[%clk 0:00:04]}  Rhc8 {[%clk 0:00:53]} 26. Nd3 {[%clk 0:00:02]}  Be4 {[%clk 0:00:52]} 27. Rc1 {[%clk 0:00:01]}  Bxd3 {[%clk 0:00:52]} 28. Bxd3 {[%clk 0:00:01]}  h6 {[%clk 0:00:24]} 29. Qxd4 {[%clk 0:00:01]}  g5 {[%clk 0:00:23]} 30. hxg5 {[%clk 0:00:02]}  hxg5 {[%clk 0:00:24]} 31. Kf2 {[%clk 0:00:01]}  gxf4 {[%clk 0:00:22]} 32. a5 {[%clk 0:00:02]}  Rd8 {[%clk 0:00:19]} 33. Rh1 {[%clk 0:00:01]}  Qg5 {[%clk 0:00:18]} 34. Rh7+ {[%clk 0:00:01]}  Kg6 {[%clk 0:00:18]} 35. Rxd7 {[%clk 0:00:01]}  Qg3+ {[%clk 0:00:19]} 36. Kf1 {[%clk 0:00:01]}  f3 {[%clk 0:00:11]} 37. Bxf5+ {[%clk 0:00:01]}  Kxf5 {[%clk 0:00:07]} 38. Qd3+ {[%clk 0:00:02]}  Kxe5 {[%clk 0:00:04]} 39. Qd6+ {[%clk 0:00:02]}  Kf5 {[%clk 0:00:04]} 40. Rf7+ {[%clk 0:00:01]}  Kg4 {[%clk 0:00:03]} 41. Rg7+ {[%clk 0:00:02]}  Kh5 {[%clk 0:00:04]} 42. Qxg3 {[%clk 0:00:02]}  fxg2+ {[%clk 0:00:05]} 43. Qxg2 {[%clk 0:00:02]}  Rf8+ {[%clk 0:00:06]} 44. Ke2 {[%clk 0:00:03]}  Rf4 {[%clk 0:00:06]} 45. Qg5# {[%clk 0:00:03]} 1-0


[Site "https://www.chess.com"]

[Event "Titled Tuesday Blitz September 20 Late 2022"]
[White "Baskakov, Egor"]
[Black "Safarli, Eltaj"]
[WhiteFideId "24197866"]
[BlackFideId "13402129"]
[WhiteElo "2211"]
[BlackElo "2634"]
[Result "0-1"]
[Round "06"]
[TimeControl "180+1"]
[Date "2022.09.20"]
[WhiteClock "0:00:21"]
[BlackClock "0:01:26"]

1. e4 {[%clk 0:03:00]}  c5 {[%clk 0:02:59]} 2. Nf3 {[%clk 0:03:00]}  Nf6 {[%clk 0:02:57]} 3. Nc3 {[%clk 0:02:59]}  d5 {[%clk 0:02:56]} 4. exd5 {[%clk 0:02:59]}  Nxd5 {[%clk 0:02:57]} 5. g3 {[%clk 0:02:54]}  g6 {[%clk 0:02:54]} 6. Bg2 {[%clk 0:02:54]}  Bg7 {[%clk 0:02:53]} 7. O-O {[%clk 0:02:54]}  O-O {[%clk 0:02:52]} 8. Re1 {[%clk 0:02:54]}  Nc6 {[%clk 0:02:52]} 9. Nxd5 {[%clk 0:02:53]}  Qxd5 {[%clk 0:02:51]} 10. Ne5 {[%clk 0:02:54]}  Qd6 {[%clk 0:02:49]} 11. Nxc6 {[%clk 0:02:54]}  bxc6 {[%clk 0:02:50]} 12. d3 {[%clk 0:02:54]}  Bf5 {[%clk 0:02:46]} 13. Bf4 {[%clk 0:02:54]}  Qd7 {[%clk 0:02:43]} 14. Be5 {[%clk 0:02:49]}  f6 {[%clk 0:02:41]} 15. Bf4 {[%clk 0:02:47]}  e5 {[%clk 0:02:40]} 16. Be3 {[%clk 0:02:47]}  Qd6 {[%clk 0:02:39]} 17. Qd2 {[%clk 0:02:43]}  Rfd8 {[%clk 0:02:38]} 18. Qa5 {[%clk 0:02:41]}  Bf8 {[%clk 0:02:38]} 19. a3 {[%clk 0:02:36]}  c4 {[%clk 0:02:34]} 20. dxc4 {[%clk 0:02:35]}  Bxc2 {[%clk 0:02:31]} 21. b4 {[%clk 0:02:34]}  Qe6 {[%clk 0:02:25]} 22. Qa6 {[%clk 0:02:25]}  e4 {[%clk 0:02:22]} 23. Rac1 {[%clk 0:02:21]}  Bd3 {[%clk 0:02:20]} 24. b5 {[%clk 0:02:15]}  Rac8 {[%clk 0:02:17]} 25. a4 {[%clk 0:02:11]}  Bb4 {[%clk 0:02:13]} 26. Red1 {[%clk 0:02:01]}  f5 {[%clk 0:02:12]} 27. Bxa7 {[%clk 0:01:53]}  Ba3 {[%clk 0:02:07]} 28. b6 {[%clk 0:01:45]}  Bxc1 {[%clk 0:02:05]} 29. Rxc1 {[%clk 0:01:45]}  c5 {[%clk 0:02:05]} 30. Qb5 {[%clk 0:01:29]}  e3 {[%clk 0:02:05]} 31. Qb2 {[%clk 0:01:18]}  Bxc4 {[%clk 0:01:59]} 32. b7 {[%clk 0:01:12]}  Rd2 {[%clk 0:01:59]} 33. bxc8=Q+ {[%clk 0:01:03]}  Qxc8 {[%clk 0:02:00]} 34. Qc3 {[%clk 0:01:00]}  exf2+ {[%clk 0:01:57]} 35. Kh1 {[%clk 0:00:59]}  Rd4 {[%clk 0:01:48]} 36. Qf3 {[%clk 0:00:23]}  f1=Q+ {[%clk 0:01:43]} 37. Rxf1 {[%clk 0:00:23]}  Bxf1 {[%clk 0:01:39]} 38. Bxf1 {[%clk 0:00:24]}  Qc7 {[%clk 0:01:36]} 39. Qa8+ {[%clk 0:00:24]}  Rd8 {[%clk 0:01:33]} 40. Bc4+ {[%clk 0:00:23]}  Kg7 {[%clk 0:01:32]} 41. Qf3 {[%clk 0:00:20]}  Qxa7 {[%clk 0:01:31]} 42. Qc3+ {[%clk 0:00:21]}  Rd4 {[%clk 0:01:26]} 0-1


[Site "https://www.chess.com"]

[Event "Titled Tuesday Blitz September 20 Late 2022"]
[White "Bortnyk, Olexandr"]
[Black "Donchenko, Alexander"]
[WhiteFideId "14120828"]
[BlackFideId "24603295"]
[WhiteElo "2723"]
[BlackElo "2572"]
[Result "1-0"]
[Round "06"]
[TimeControl "180+1"]
[Date "2022.09.20"]
[WhiteClock "0:00:46"]
[BlackClock "0:00:38"]

1. e4 {[%clk 0:02:53]}  c6 {[%clk 0:03:00]} 2. c4 {[%clk 0:02:50]}  d5 {[%clk 0:03:01]} 3. cxd5 {[%clk 0:02:51]}  cxd5 {[%clk 0:03:01]} 4. exd5 {[%clk 0:02:52]}  Nf6 {[%clk 0:03:02]} 5. Qa4+ {[%clk 0:02:52]}  Nbd7 {[%clk 0:03:01]} 6. Nc3 {[%clk 0:02:52]}  g6 {[%clk 0:03:02]} 7. Bc4 {[%clk 0:02:51]}  Bg7 {[%clk 0:03:02]} 8. d3 {[%clk 0:02:51]}  O-O {[%clk 0:03:02]} 9. Nf3 {[%clk 0:02:49]}  a6 {[%clk 0:03:02]} 10. Qa3 {[%clk 0:02:49]}  Nb6 {[%clk 0:02:29]} 11. Qb3 {[%clk 0:02:49]}  Nxc4 {[%clk 0:02:29]} 12. dxc4 {[%clk 0:02:50]}  b5 {[%clk 0:02:30]} 13. cxb5 {[%clk 0:02:49]}  axb5 {[%clk 0:02:30]} 14. O-O {[%clk 0:02:50]}  b4 {[%clk 0:02:26]} 15. Qxb4 {[%clk 0:02:49]}  Nxd5 {[%clk 0:02:26]} 16. Nxd5 {[%clk 0:02:48]}  Qxd5 {[%clk 0:02:27]} 17. Re1 {[%clk 0:02:48]}  Rxa2 {[%clk 0:02:17]} 18. Rxa2 {[%clk 0:02:49]}  Qxa2 {[%clk 0:02:17]} 19. Qxe7 {[%clk 0:02:49]}  Bg4 {[%clk 0:02:05]} 20. Ne5 {[%clk 0:02:38]}  Be6 {[%clk 0:02:02]} 21. h4 {[%clk 0:02:08]}  Rc8 {[%clk 0:01:52]} 22. Nf3 {[%clk 0:01:32]}  Bxb2 {[%clk 0:01:35]} 23. Bxb2 {[%clk 0:01:33]}  Qxb2 {[%clk 0:01:35]} 24. Rxe6 {[%clk 0:01:31]}  Rc2 {[%clk 0:01:07]} 25. Qe8+ {[%clk 0:01:05]}  Kg7 {[%clk 0:01:07]} 26. Re7 {[%clk 0:01:04]}  Qc1+ {[%clk 0:00:38]} 27. Ne1 {[%clk 0:00:46]} 1-0


[Site "https://www.chess.com"]